lending/lending_fUSD_20240723
["ID","MTS","AMOUNT","RATE_DAILY","PERIOD"]
[332943752,1721695839643,-413.18370069,0.00010986,2]
[332943754,1721695840471,-335.92939992,0.00010986,2]
[332943755,1721695840483,-348.89010204,0.00010986,2]
[332943756,1721695840494,-243.30679735,0.00010986,2]
[332943757,1721695840506,-48.19820265,0.00010986,3]
[332943758,1721695840549,150.0,7.652e-05,2]
[332943759,1721695840742,150.0,8.615e-05,2]
[332943760,1721695840756,-150.0,9.321e-05,2]
[332943762,1721695840766,-129.69657276,0.00010003,2]
[332943764,1721695840777,-20.30342724,0.00010003,2]
[332943766,1721695840787,-662.54834617,0.00010986,3]
[332943768,1721695840798,-630.56345118,0.00010986,3]
[332943770,1721695840808,-500.0,0.00010986,2]
[332943772,1721695840817,-500.0,0.00010986,2]
[332943774,1721695840827,-1083.85,0.00010986,2]
[332943775,1721695840839,-172.13193447,0.00010986,3]
[332943778,1721695840851,-911.71806553,0.00010986,3]
[332943780,1721695840861,-500.0,0.00010986,2]
[332943782,1721695840871,-1898.11,0.00010986,2]
[332943784,1721695840881,-1898.11,0.00010986,3]
[332943785,1721695840890,-500.0,0.00010986,2]
[332943787,1721695840900,-760.56,0.00010986,2]
[332943789,1721695840910,-760.56,0.00010986,3]
[332943791,1721695840920,-3387.9,0.00010986,2]
[332943793,1721695840930,-310.11515113,0.00010986,3]
[332943801,1721695841007,150.0,6.918e-05,2]
[332943802,1721695841020,-150.0,0.0001056,2]
[332943803,1721695841032,-500.0,0.00010985,3]
[332943804,1721695841042,-61.6,0.00010986,3]
[332943805,1721695841053,-522.58091288,0.00010986,3]
[332943806,1721695841101,-150.0,9.05e-05,2]
[332943807,1721695841110,-200.0,0.00010986,3]
[332943808,1721695841122,-2293.60393599,0.00010986,3]
[332943809,1721695841132,-500.0,0.00010986,2]
[332943810,1721695841141,-781.75,0.00010986,2]
[332943811,1721695841151,-781.75,0.00010986,3]
[332943812,1721695841163,-500.0,0.00010986,2]
[332943813,1721695841173,-1355.3,0.00010986,2]
[332943814,1721695841183,-1233.70261714,0.00010986,3]
[332943815,1721695841301,150.0,7.473e-05,2]
[332943816,1721695841395,150.0,8.155e-05,2]
[332943817,1721695841473,150.0,8.392e-05,2]
[332943818,1721695841621,150.0,7.719e-05,2]
[332943819,1721695841711,150.0,7.25e-05,2]
[332943820,1721695841817,150.0,8.525e-05,2]
[332943821,1721695841897,150.0,8.046e-05,2]
[332943822,1721695841945,150.0,8.979e-05,2]
[332943823,1721695842204,150.0,6.99e-05,2]
[332943824,1721695842337,150.0,7.655e-05,2]
[332943825,1721695842504,150.0,8.018e-05,2]
[332943826,1721695842641,150.0,7.427e-05,2]
[332943827,1721695842712,150.0,7.515e-05,2]
[332943828,1721695842748,150.0,8.908e-05,2]
[332943829,1721695842923,150.0,8.392e-05,2]
[332943830,1721695843010,150.0,8.366e-05,2]
[332943843,1721695846429,-150.0,9.086e-05,2]
[332943844,1721695846440,-150.0,9.255e-05,2]
[332943845,1721695846450,-110.19142791,9.402e-05,2]
[332943895,1721695847222,-39.80857209,9.402e-05,2]
[332943896,1721695847231,-150.0,9.43e-05,2]
[332943897,1721695847240,-150.0,9.485e-05,2]
[332943898,1721695847249,-150.0,9.531e-05,2]
[332943899,1721695847262,-150.0,9.57e-05,2]
[332943900,1721695847272,-150.0,9.574e-05,2]
[332943901,1721695847281,-150.0,9.659e-05,2]
[332943902,1721695847290,-150.0,9.757e-05,2]
[332943903,1721695847299,-71.73406503,9.759e-05,2]
[332943904,1721695847311,-78.26593497,9.759e-05,2]
[332943905,1721695847320,-150.0,9.789e-05,2]
[332943906,1721695847329,-150.0,0.00010113,2]
[332943907,1721695847338,-150.0,0.00010117,2]
[332943908,1721695847347,-150.0,0.00010168,2]
[332943909,1721695847356,-150.0,0.00010281,2]
[332943910,1721695847365,-150.0,0.0001047,2]
[332943911,1721695847374,-150.0,0.00010521,2]
[332943912,1721695847383,-150.0,0.0001055,2]
[332943913,1721695847392,-265.47405534,0.00010559,2]
[332943914,1721695847402,-150.0,0.00010739,2]
[332943915,1721695847411,-150.0,0.00010829,2]
[332943916,1721695847421,-275.85084924,0.00010958,2]
[332943917,1721695847438,-550.24674145,0.00010958,2]
[332943918,1721695847511,-531.05240931,0.00010958,2]
[332943919,1721695847521,-500.0,0.00010958,2]
[332943920,1721695847531,-968.94759069,0.00010984,2]
[332943921,1721695849683,-1251.37,0.00010958,2]
[332943922,1721695849694,-500.0,0.00010958,2]
[332943923,1721695849704,-1646.56999999,0.00010984,2]
[332943924,1721695849717,-103.20240932,0.00010984,2]
[332943925,1721695849728,-935.6,0.00010984,2]
[332943926,1721695849738,-179.35362733,0.00010985,4]
[332943927,1721695849775,-701.11,0.00010985,4]
[332943928,1721695851772,-6925.67894862,0.00010958,2]
[332943929,1721696142712,179.55,8.219e-05,2]
[332943930,1721696640553,1546.79525716,0.000162,120]
[332943932,1721696761483,170.57,8.219e-05,2]
[332943966,1721697032463,-200.0,9.622e-05,2]
[332943967,1721697032473,-168.7,9.624e-05,2]
[332943968,1721697032483,-158.36338007,9.627e-05,2]
[332943969,1721697032497,-41.63661993,9.627e-05,2]
[332943970,1721697032506,-1000.0,9.643e-05,2]
[332943971,1721697032515,-863.00867431,9.646e-05,2]
[332943972,1721697032532,-989.41132569,9.646e-05,2]
[332943973,1721697032541,-23890.0,9.65e-05,2]
[332943974,1721697032550,-500.0,9.666e-05,2]
[332943975,1721697032559,-4654.64,9.667e-05,2]
[332943976,1721697032568,-250.0,9.668e-05,2]
[332943977,1721697032578,-1368.43,9.668e-05,2]
[332943978,1721697032587,-348.88,9.67e-05,2]
[332943979,1721697032596,-672.4,9.675e-05,2]
[332943980,1721697032605,-500.0,9.684e-05,2]
[332943981,1721697032615,-254.09727519,9.962e-05,2]
[332943982,1721697032625,-229.13265735,9.962e-05,2]
[332943983,1721697032634,-300.0,0.00010178,2]
[332943984,1721697032643,-150.0,0.00010178,2]
[332943985,1721697032652,-300.0,0.00010178,2]
[332943986,1721697032661,-334.98,0.00010178,2]
[332943987,1721697032670,-150.0,0.00010178,2]
[332943988,1721697032680,-150.0,0.00010178,2]
[332943989,1721697032689,-150.0,0.00010178,2]
[332943990,1721697032698,-425.44,0.00010178,2]
[332943991,1721697032707,-150.0,0.00010178,2]
[332943992,1721697032716,-150.0,0.00010178,2]
[332943993,1721697032725,-150.0,0.00010178,2]
[332943994,1721697032735,-355.75,0.000102,2]
[332943995,1721697032745,-165.28,0.000102,2]
[332943996,1721697032754,-150.0,0.000102,2]
[332943997,1721697032763,-311.48,0.000102,2]
[332943998,1721697032773,-165.28,0.000102,2]
[332943999,1721697032782,-150.0,0.000102,2]
[332944000,1721697032791,-355.75,0.000102,2]
[332944001,1721697032800,-170.57,0.00010459,2]
[332944002,1721697032809,-150.0,0.00010711,2]
[332944003,1721697032818,-150.0,0.00010712,2]
[332944004,1721697032827,-150.0,0.00010712,2]
[332944005,1721697032836,-150.0,0.00010712,2]
[332944006,1721697032845,-150.0,0.00010712,2]
[332944007,1721697032855,-425.44,0.00010712,2]
[332944008,1721697032864,-425.44,0.00010712,2]
[332944009,1721697032873,-425.44,0.00010712,2]
[332944010,1721697032883,-425.44,0.00010712,2]
[332944011,1721697032892,-425.44,0.00010712,2]
[332944012,1721697032902,-425.44,0.00010712,2]
[332944013,1721697032912,-425.44,0.00010712,2]
[332944014,1721697032921,-150.0,0.0001075,2]
[332944015,1721697032931,-294.6914,0.00010776,2]
[332944016,1721697032940,-219.6763,0.00010776,2]
[332944017,1721697032950,-1163.4179,0.0001078,2]
[332944018,1721697032960,-150.0,0.000108,2]
[332944019,1721697032969,-164.56,0.000108,2]
[332944020,1721697032979,-150.0,0.000108,2]
[332944021,1721697032988,-1000.0,0.00010849,2]
[332944022,1721697032999,-179.80965226,0.00010858,2]
[332944023,1721697033007,-169.24846796,0.00010858,2]
[332944024,1721697033016,-1000.0,0.00010858,2]
[332944025,1721697033026,-195.2338,0.00010858,2]
[332944026,1721697033035,-163.5862,0.00010858,2]
[332944027,1721697033044,-31826.24374098,0.0001088,2]
[332944028,1721697033054,-3000.0,0.0001088,2]
[332944029,1721697033064,-165.28,0.000109,2]
[332944030,1721697033073,-150.0,0.000109,2]
[332944031,1721697033083,-529.84,0.000109,2]
[332944032,1721697033093,-154.66402118,0.000109,2]
[332944033,1721697033103,-150.0,0.00010914,2]
[332944034,1721697033112,-500.0,0.00010958,2]
[332944035,1721697033122,-500.0,0.00010958,2]
[332944036,1721697033131,-500.0,0.00010958,2]
[332944037,1721697033141,-521.83,0.00010958,2]
[332944038,1721697033151,-500.0,0.00010958,2]
[332944039,1721697033162,-500.0,0.00010958,2]
[332944040,1721697033172,-500.0,0.00010958,2]
[332944041,1721697033186,-500.0,0.00010958,2]
[332944042,1721697033196,-545.09,0.00010958,2]
[332944043,1721697033205,-500.0,0.00010958,2]
[332944044,1721697033215,-728.37,0.00010958,2]
[332944045,1721697033225,-500.0,0.00010958,2]
[332944046,1721697033235,-508.1,0.00010958,2]
[332944047,1721697033245,-500.0,0.00010958,2]
[332944048,1721697033255,-554.69,0.00010958,2]
[332944049,1721697033265,-500.0,0.00010958,2]
[332944050,1721697033275,-778.38,0.00010958,2]
[332944051,1721697033285,-950.35,0.00010958,2]
[332944052,1721697033295,-500.0,0.00010958,2]
[332944053,1721697033304,-646.4,0.00010958,2]
[332944054,1721697033314,-500.0,0.00010958,2]
[332944055,1721697033323,-508.96151616,0.00010958,2]
[332944056,1721697033333,-500.0,0.00010958,2]
[332944057,1721697033343,-500.0,0.00010958,2]
[332944058,1721697033353,-641.38,0.00010958,2]
[332944059,1721697033363,-500.0,0.00010958,2]
[332944060,1721697033373,-500.0,0.00010958,2]
[332944061,1721697033383,-500.0,0.00010958,2]
[332944062,1721697033393,-500.0,0.00010958,2]
[332944063,1721697033402,-500.0,0.00010958,2]
[332944064,1721697033412,-500.0,0.00010958,2]
[332944065,1721697033421,-500.0,0.00010958,2]
[332944066,1721697033431,-500.0,0.00010958,2]
[332944067,1721697033440,-2952.42,0.00010958,2]
[332944068,1721697033450,-500.0,0.00010958,2]
[332944069,1721697033460,-891.07,0.00010958,2]
[332944070,1721697033469,-500.0,0.00010958,2]
[332944071,1721697033478,-500.0,0.00010958,2]
[332944072,1721697033487,-500.0,0.00010958,2]
[332944073,1721697033499,-500.0,0.00010958,2]
[332944074,1721697033508,-375.17174829,0.00010958,2]
[332944075,1721697033518,-500.0,0.00010958,2]
[332944076,1721697033526,-500.0,0.00010958,2]
[332944077,1721697033536,-1093.91,0.00010958,2]
[332944078,1721697033545,-524.68030284,0.00010958,2]
[332944079,1721697033554,-651.15,0.00010958,2]
[332944080,1721697033563,-500.0,0.00010958,2]
[332944081,1721697033573,-309.83138721,0.00010958,2]
[332944082,1721697033582,-500.0,0.00010958,2]
[332944083,1721697033591,-500.0,0.00010958,2]
[332944084,1721697033601,-711.41,0.00010958,2]
[332944085,1721697033610,-831.69,0.00010958,2]
[332944086,1721697033619,-500.0,0.00010958,2]
[332944087,1721697033629,-500.0,0.00010958,2]
[332944088,1721697033638,-2070.05,0.00010958,2]
[332944089,1721697033647,-346.85286202,0.00010958,2]
[332944090,1721697033657,-500.0,0.00010958,2]
[332944091,1721697033667,-500.0,0.00010958,2]
[332944092,1721697033676,-2630.12,0.00010958,2]
[332944093,1721697033686,-500.0,0.00010958,2]
[332944094,1721697033695,-500.0,0.00010958,2]
[332944095,1721697033705,-500.0,0.00010958,2]
[332944096,1721697033714,-500.0,0.00010958,2]
[332944097,1721697033723,-500.0,0.00010958,2]
[332944098,1721697033733,-529.29,0.00010958,2]
[332944099,1721697033743,-500.0,0.00010958,2]
[332944100,1721697033753,-2017.09,0.00010958,2]
[332944101,1721697033763,-2868.94,0.00010958,2]
[332944102,1721697033772,-500.0,0.00010958,2]
[332944103,1721697033782,-500.0,0.00010958,2]
[332944104,1721697033791,-500.0,0.00010958,2]
[332944105,1721697033800,-643.44,0.00010958,2]
[332944106,1721697033809,-500.0,0.00010958,2]
[332944107,1721697033818,-500.0,0.00010958,2]
[332944108,1721697033827,-1288.65,0.00010958,2]
[332944109,1721697033836,-1341.33,0.00010958,2]
[332944110,1721697033845,-500.0,0.00010958,2]
[332944111,1721697033853,-1913.77,0.00010958,2]
[332944112,1721697033863,-500.0,0.00010958,2]
[332944113,1721697033873,-1298.14,0.00010958,2]
[332944114,1721697033882,-560.97,0.00010958,2]
[332944115,1721697033891,-2103.86,0.00010958,2]
[332944116,1721697033901,-500.0,0.00010958,2]
[332944117,1721697033910,-500.0,0.00010958,2]
[332944118,1721697033920,-616.08,0.00010958,2]
[332944119,1721697033929,-500.0,0.00010958,2]
[332944120,1721697033938,-500.0,0.00010958,2]
[332944121,1721697033947,-1393.76,0.00010958,2]
[332944122,1721697033956,-790.03,0.00010958,2]
[332944123,1721697033966,-500.0,0.00010958,2]
[332944124,1721697033975,-1055.73,0.00010958,2]
[332944125,1721697033984,-692.86,0.00010958,2]
[332944126,1721697033995,-896.55,0.00010958,2]
[332944127,1721697034004,-500.0,0.00010958,2]
[332944128,1721697034013,-500.0,0.00010958,2]
[332944129,1721697034023,-500.0,0.00010958,2]
[332944130,1721697034035,-604.99282221,0.00010958,2]
[332944131,1721697034045,-500.0,0.00010958,2]
[332944132,1721697034053,-500.0,0.00010958,2]
[332944133,1721697034064,-165.8705618,0.00010958,2]
[332944134,1721697034073,-710.64,0.00010958,2]
[332944135,1721697034083,-500.0,0.00010958,2]
[332944136,1721697034092,-500.0,0.00010958,2]
[332944137,1721697034101,-562.37415749,0.00010958,2]
[332944138,1721697034112,-605.21,0.00010958,2]
[332944139,1721697034121,-500.0,0.00010958,2]
[332944140,1721697034130,-500.95532046,0.00010958,2]
[332944141,1721697034139,-778.1,0.00010958,2]
[332944142,1721697034148,-500.0,0.00010958,2]
[332944143,1721697034158,-500.0,0.00010958,2]
[332944144,1721697034168,-500.0,0.00010958,2]
[332944145,1721697034178,-2141.51,0.00010958,2]
[332944146,1721697034191,-500.0,0.00010958,2]
[332944147,1721697034201,-500.0,0.00010958,2]
[332944148,1721697034210,-500.0,0.00010958,2]
[332944149,1721697034219,-500.0,0.00010958,2]
[332944150,1721697034229,-848.05,0.00010958,2]
[332944151,1721697034239,-500.0,0.00010958,2]
[332944152,1721697034250,-1207.48,0.00010958,2]
[332944153,1721697034259,-500.0,0.00010958,2]
[332944154,1721697034271,-500.0,0.00010958,2]
[332944155,1721697034280,-500.0,0.00010958,2]
[332944156,1721697034289,-501.47034262,0.00010958,2]
[332944157,1721697034299,-500.0,0.00010958,2]
[332944158,1721697034307,-500.0,0.00010958,2]
[332944159,1721697034317,-500.0,0.00010958,2]
[332944160,1721697034326,-1591.97,0.00010958,2]
[332944161,1721697034672,-1662.24,0.00010958,2]
[332944162,1721697034682,-500.0,0.00010958,2]
[332944163,1721697034692,-1662.24,0.00010958,3]
[332944164,1721697034701,-500.0,0.00010958,2]
[332944165,1721697034710,-500.0,0.00010958,2]
[332944166,1721697034720,-638.23,0.00010958,2]
[332944167,1721697034729,-500.0,0.00010958,2]
[332944168,1721697034738,-500.0,0.00010958,2]
[332944169,1721697034750,-500.0,0.00010958,2]
[332944170,1721697034759,-500.0,0.00010958,2]
[332944171,1721697034769,-2277.02,0.00010958,2]
[332944172,1721697034779,-965.14,0.00010958,2]
[332944173,1721697034788,-965.14,0.00010958,3]
[332944174,1721697034798,-500.0,0.00010958,2]
[332944175,1721697034807,-500.0,0.00010958,2]
[332944176,1721697034816,-500.0,0.00010958,2]
[332944177,1721697034826,-483.80436637,0.00010958,2]
[332944178,1721697034835,-500.0,0.00010958,2]
[332944179,1721697034844,-500.0,0.00010958,2]
[332944180,1721697034853,-500.0,0.00010958,2]
[332944181,1721697034863,-500.0,0.00010958,2]
[332944182,1721697034872,-627.5,0.00010958,2]
[332944183,1721697034881,-699.58,0.00010958,2]
[332944184,1721697034892,-500.0,0.00010958,2]
[332944185,1721697034902,-500.0,0.00010958,2]
[332944186,1721697034912,-500.0,0.00010958,2]
[332944187,1721697034921,-500.0,0.00010958,2]
[332944188,1721697034931,-500.0,0.00010958,2]
[332944189,1721697034940,-1166.97,0.00010958,2]
[332944190,1721697034950,-500.0,0.00010958,2]
[332944191,1721697034959,-1166.97,0.00010958,3]
[332944192,1721697034970,-761.89,0.00010958,2]
[332944193,1721697034979,-500.0,0.00010958,2]
[332944194,1721697034989,-752.17,0.00010958,2]
[332944195,1721697035000,-500.0,0.00010958,2]
[332944196,1721697035010,-1481.6,0.00010958,2]
[332944197,1721697035019,-594.17,0.00010958,2]
[332944198,1721697035029,-500.0,0.00010958,2]
[332944199,1721697035038,-500.0,0.00010958,2]
[332944200,1721697035047,-500.0,0.00010958,2]
[332944201,1721697035056,-1223.64,0.00010958,2]
[332944202,1721697035066,-1223.64,0.00010958,3]
[332944203,1721697035075,-518.58,0.00010958,2]
[332944204,1721697035084,-500.0,0.00010958,2]
[332944205,1721697035093,-537.58735414,0.00010958,2]
[332944206,1721697035102,-582.56,0.00010958,2]
[332944207,1721697035111,-500.0,0.00010958,2]
[332944208,1721697035121,-500.0,0.00010958,2]
[332944209,1721697035130,-500.0,0.00010958,2]
[332944210,1721697035140,-1069.38,0.00010958,2]
[332944211,1721697035149,-500.0,0.00010958,2]
[332944212,1721697035158,-500.0,0.00010958,2]
[332944213,1721697035167,-507.48976419,0.00010958,2]
[332944214,1721697035180,-500.0,0.00010958,2]
[332944215,1721697035190,-500.0,0.00010958,2]
[332944216,1721697035199,-500.0,0.00010958,3]
[332944217,1721697035209,-500.0,0.00010958,2]
[332944218,1721697035219,-500.0,0.00010958,2]
[332944219,1721697035228,-500.0,0.00010958,2]
[332944220,1721697035237,-506.93428978,0.00010958,2]
[332944221,1721697035248,-646.5,0.00010958,2]
[332944222,1721697035258,-503.6024218,0.00010958,2]
[332944223,1721697035268,-500.0,0.00010958,2]
[332944224,1721697035277,-500.0,0.00010958,2]
[332944225,1721697035287,-1229.54,0.00010958,2]
[332944226,1721697035296,-1229.54,0.00010958,3]
[332944227,1721697035305,-1998.7,0.00010958,2]
[332944228,1721697035314,-521.36,0.00010958,2]
[332944229,1721697035323,-500.0,0.00010958,2]
[332944230,1721697035333,-500.0,0.00010958,2]
[332944231,1721697035343,-500.0,0.00010958,2]
[332944232,1721697035352,-528.56,0.00010958,2]
[332944233,1721697035361,-500.0,0.00010958,2]
[332944234,1721697035370,-500.0,0.00010958,2]
[332944235,1721697035379,-500.0,0.00010958,2]
[332944236,1721697035389,-639.18,0.00010958,2]
[332944237,1721697035397,-524.66,0.00010958,2]
[332944238,1721697035406,-500.0,0.00010958,2]
[332944239,1721697035415,-1739.93,0.00010958,2]
[332944240,1721697035424,-1739.93,0.00010958,3]
[332944241,1721697035433,-500.0,0.00010958,2]
[332944242,1721697035443,-500.0,0.00010958,2]
[332944243,1721697035452,-500.0,0.00010958,2]
[332944244,1721697035461,-500.0,0.00010958,2]
[332944245,1721697035470,-1079.15,0.00010958,2]
[332944246,1721697035479,-500.0,0.00010958,2]
[332944247,1721697035488,-993.53,0.00010958,2]
[332944248,1721697035498,-500.0,0.00010958,2]
[332944249,1721697035507,-3105.58,0.00010958,2]
[332944250,1721697035517,-500.0,0.00010958,2]
[332944251,1721697035526,-3105.58,0.00010958,3]
[332944252,1721697035535,-500.0,0.00010958,2]
[332944253,1721697035544,-580.64,0.00010958,2]
[332944254,1721697035553,-500.0,0.00010958,2]
[332944255,1721697035562,-500.0,0.00010958,2]
[332944256,1721697035571,-500.0,0.00010958,2]
[332944257,1721697035581,-500.0,0.00010958,2]
[332944258,1721697035590,-500.0,0.00010958,2]
[332944259,1721697035599,-590.57973722,0.00010958,2]
[332944260,1721697035608,-500.0,0.00010958,2]
[332944261,1721697035617,-716.6,0.00010958,2]
[332944262,1721697035627,-500.0,0.00010958,2]
[332944263,1721697035636,-716.6,0.00010958,3]
[332944264,1721697035645,-500.0,0.00010958,2]
[332944265,1721697035655,-1084.96,0.00010958,2]
[332944266,1721697035665,-500.0,0.00010958,2]
[332944267,1721697035674,-500.0,0.00010958,2]
[332944268,1721697035683,-500.0,0.00010958,2]
[332944269,1721697035693,-500.0,0.00010958,2]
[332944270,1721697035703,-347.49045812,0.00010958,2]
[332944271,1721697035712,-500.0,0.00010958,2]
[332944272,1721697035721,-1247.42,0.00010958,2]
[332944273,1721697035731,-500.0,0.00010958,2]
[332944274,1721697035740,-20000.0,0.00010958,2]
[332944275,1721697035755,-500.0,0.00010958,2]
[332944276,1721697035764,-20000.0,0.00010958,2]
[332944277,1721697035774,-1890.97,0.00010958,2]
[332944278,1721697035783,-500.0,0.00010958,2]
[332944279,1721697035792,-500.0,0.00010958,2]
[332944280,1721697035801,-857.51,0.00010958,2]
[332944281,1721697035811,-500.0,0.00010958,2]
[332944282,1721697035820,-500.0,0.00010958,2]
[332944283,1721697035830,-2617.83,0.00010958,2]
[332944284,1721697035839,-857.51,0.00010958,3]
[332944285,1721697035848,-571.27,0.00010958,2]
[332944286,1721697035857,-500.0,0.00010958,2]
[332944287,1721697035867,-500.0,0.00010958,2]
[332944288,1721697035876,-500.0,0.00010958,2]
[332944289,1721697035886,-500.0,0.00010958,2]
[332944290,1721697035895,-500.0,0.00010958,2]
[332944291,1721697035904,-500.0,0.00010958,2]
[332944292,1721697035913,-500.0,0.00010958,2]
[332944293,1721697035923,-500.0,0.00010958,2]
[332944294,1721697035933,-963.87,0.00010958,2]
[332944295,1721697035942,-963.87,0.00010958,3]
[332944296,1721697035952,-1479.35,0.00010958,2]
[332944297,1721697035961,-500.0,0.00010958,2]
[332944298,1721697035970,-843.0,0.00010958,2]
[332944299,1721697035980,-611.32,0.00010958,2]
[332944300,1721697035990,-500.0,0.00010958,2]
[332944301,1721697036005,-500.0,0.00010958,2]
[332944302,1721697036016,-500.0,0.00010958,2]
[332944303,1721697036026,-500.0,0.00010958,2]
[332944304,1721697036036,-945.6,0.00010958,2]
[332944305,1721697036047,-500.0,0.00010958,2]
[332944306,1721697036057,-500.0,0.00010958,2]
[332944307,1721697036067,-500.0,0.00010958,2]
[332944308,1721697036077,-500.0,0.00010958,2]
[332944309,1721697036087,-1684.01,0.00010958,2]
[332944310,1721697036097,-1684.01,0.00010958,3]
[332944311,1721697036107,-500.0,0.00010958,2]
[332944312,1721697036116,-546.65,0.00010958,2]
[332944313,1721697036126,-2041.12,0.00010958,2]
[332944314,1721697036135,-500.0,0.00010958,2]
[332944315,1721697036144,-500.0,0.00010958,2]
[332944316,1721697036155,-500.0,0.00010958,2]
[332944317,1721697036164,-500.0,0.00010958,2]
[332944318,1721697036177,-668.37,0.00010958,2]
[332944319,1721697036188,-3351.16,0.00010958,2]
[332944320,1721697036197,-500.0,0.00010958,2]
[332944321,1721697036207,-500.0,0.00010958,2]
[332944322,1721697036217,-500.0,0.00010958,2]
[332944323,1721697036227,-500.0,0.00010958,2]
[332944324,1721697036237,-1571.59,0.00010958,2]
[332944325,1721697036250,-1416.01,0.00010958,2]
[332944326,1721697036261,-500.0,0.00010958,2]
[332944327,1721697036270,-1416.01,0.00010958,3]
[332944328,1721697036280,-1808.98,0.00010958,2]
[332944329,1721697036290,-500.0,0.00010958,2]
[332944330,1721697036300,-204.15820275,0.00010958,2]
[332944331,1721697036309,-500.0,0.00010958,2]
[332944332,1721697036319,-500.0,0.00010958,2]
[332944333,1721697036329,-500.0,0.00010958,2]
[332944334,1721697036338,-500.0,0.00010958,2]
[332944335,1721697036349,-1182.79,0.00010958,2]
[332944336,1721697036358,-697.96,0.00010958,2]
[332944337,1721697036367,-508.46408101,0.00010958,2]
[332944338,1721697036377,-500.0,0.00010958,2]
[332944339,1721697036387,-1888.25,0.00010958,2]
[332944340,1721697036396,-500.0,0.00010958,2]
[332944341,1721697036406,-620.93,0.00010958,2]
[332944342,1721697036416,-2000.0,0.00010958,2]
[332944343,1721697036425,-620.93,0.00010958,3]
[332944344,1721697036435,-500.0,0.00010958,2]
[332944345,1721697036445,-1123.12,0.00010958,2]
[332944346,1721697036454,-500.0,0.00010958,2]
[332944347,1721697036464,-500.0,0.00010958,2]
[332944348,1721697036474,-532.63,0.00010958,2]
[332944349,1721697036483,-500.0,0.00010958,2]
[332944350,1721697036495,-274.16482767,0.00010958,2]
[332944351,1721697036505,-500.0,0.00010958,2]
[332944352,1721697036514,-500.0,0.00010958,2]
[332944353,1721697036524,-500.0,0.00010958,2]
[332944354,1721697036533,-500.0,0.00010958,2]
[332944355,1721697036542,-500.0,0.00010958,2]
[332944356,1721697036552,-853.57,0.00010958,2]
[332944357,1721697036561,-500.0,0.00010958,2]
[332944358,1721697036571,-500.0,0.00010958,2]
[332944359,1721697036581,-508.51126661,0.00010958,2]
[332944360,1721697036590,-500.0,0.00010958,2]
[332944361,1721697036599,-1044.79,0.00010958,2]
[332944362,1721697036608,-500.0,0.00010958,2]
[332944363,1721697036618,-500.0,0.00010958,2]
[332944364,1721697036628,-500.0,0.00010958,2]
[332944365,1721697036638,-500.0,0.00010958,2]
[332944366,1721697036647,-500.0,0.00010958,2]
[332944367,1721697036657,-500.0,0.00010958,2]
[332944368,1721697036666,-500.0,0.00010958,2]
[332944369,1721697036676,-500.0,0.00010958,2]
[332944370,1721697036686,-1431.06,0.00010958,2]